bitfinex/quotes_SOLUSD_20240624
["timestamp","ask_amount","ask_price","bid_price","bid_amount"]
[1719209227264,1.2163,124.99,124.86,100.0]
[1719209227452,1.2163,124.99,124.89,100.0]
[1719209227669,1.2163,124.99,124.9,1.85208407]
[1719209228258,1.2163,124.99,124.91,0.34]
[1719209228483,1.2163,124.99,124.92,5.6035]
[1719209228664,1.2163,124.99,124.91,0.34]
[1719209228863,1.2163,124.99,124.91,5.944]
[1719209229784,1.2163,124.99,124.9,1.85208407]
[1719209230284,1.2163,124.99,124.9,7.45628407]
[1719209230475,1.2163,124.99,124.9,1.85208407]
[1719209230684,0.8172,124.97,124.9,1.85208407]
[1719209231585,0.8172,124.97,124.85,4.081909]
[1719209231763,0.17,124.96,124.85,5.6065]
[1719209231963,0.17,124.96,124.84,8.81631]
[1719209232188,0.34,124.96,124.84,8.81631]
[1719209232364,2.0335,124.95,124.83,5.6074]
[1719209232564,4.89910921,124.95,124.82,9.290609]
[1719209232779,0.34,124.94,124.82,9.290609]
[1719209232959,0.34,124.94,124.82,5.6078]
[1719209233162,0.34,124.94,124.82,5.6079]
[1719209233588,4.89910921,124.95,124.84,5.607]
[1719209233891,4.89910921,124.95,124.83,1.85312265]
[1719209233892,3.03560921,124.94,124.83,1.85312265]
[1719209234075,2.86560921,124.94,124.83,1.85312265]
[1719209234583,0.8172,124.92,124.83,1.85312265]
[1719209234977,0.17,124.91,124.83,1.85312265]
[1719209235160,3.03560921,124.91,124.82,5.6077]
[1719209235365,0.8172,124.92,124.8,14.0223]
[1719209235864,0.8172,124.92,124.84,5.6071]
[1719209236061,0.8172,124.92,124.85,5.6065]
[1719209236269,0.8172,124.92,124.83,114.0181]
[1719209236482,0.8172,124.92,124.85,5.6065]
[1719209236687,0.8172,124.92,124.84,0.34]
[1719209237001,0.8172,124.92,124.86,5.606]
[1719209237165,0.8172,124.92,124.87,0.17]
[1719209237371,0.8172,124.92,124.81,100.0]
[1719209237694,0.8172,124.92,124.81,5.6082]
[1719209237867,0.8172,124.92,124.8,1.85356811]
[1719209238191,0.8172,124.92,124.82,5.6077]
[1719209238489,0.8172,124.92,124.83,5.6075]
[1719209238881,0.8172,124.92,124.83,5.6074]
[1719209239269,0.8172,124.92,124.82,0.17]
[1719209239593,0.8172,124.92,124.84,0.17]
[1719209239891,0.8172,124.92,124.85,1.8528258]
[1719209240294,0.8172,124.92,124.87,5.6058]
[1719209240493,0.8172,124.92,124.87,5.6056]
[1719209240791,0.8172,124.92,124.88,5.6053]
[1719209241189,0.8172,124.92,124.85,1.8528258]
[1719209241683,0.8172,124.92,124.85,7.4595258]
[1719209241892,0.8172,124.92,124.85,1.8528258]
[1719209242768,0.8172,124.92,124.85,7.4594258]
[1719209242968,0.8172,124.92,124.86,5.6062]
[1719209243570,0.8172,124.92,124.85,7.4593258]
[1719209244181,0.8172,124.92,124.85,1.8528258]
[1719209244364,0.8172,124.92,124.88,5.6053]
[1719209244573,0.8172,124.92,124.85,1.8528258]
[1719209245168,0.8172,124.92,124.86,0.17]
[1719209246073,0.8172,124.92,124.85,1.8528258]
[1719209246603,0.8172,124.92,124.83,5.6075]
[1719209246905,0.8172,124.92,124.82,5.6078]
[1719209247577,0.8172,124.92,124.83,5.6075]
[1719209247986,0.8172,124.92,124.84,5.6071]
[1719209248185,0.8172,124.92,124.85,5.6066]
[1719209248384,0.8172,124.92,124.83,100.0]
[1719209248580,0.8172,124.92,124.87,5.6056]
[1719209249597,0.8172,124.92,124.85,5.6066]
[1719209250170,0.8172,124.92,124.86,5.6061]
[1719209250366,0.8172,124.92,124.87,0.17]
[1719209250589,0.8172,124.92,124.89,5.6048]
[1719209250993,0.8172,124.92,124.88,5.6051]
[1719209251489,0.8172,124.92,124.89,5.6049]
[1719209251700,0.8172,124.92,124.88,5.6051]
[1719209252608,2.0335,124.95,124.87,100.17]
[1719209252899,0.8172,124.95,124.9,5.6042]
[1719209253079,0.8172,124.95,124.91,0.17]
[1719209253284,0.8172,124.95,124.88,0.17]
[1719209253586,0.8172,124.95,124.91,0.17]
[1719209254197,0.8172,124.97,124.91,0.17]
[1719209254571,0.8172,124.97,124.86,22.7878]
[1719209254885,0.8172,124.97,124.89,5.6047]
[1719209255094,0.8172,124.97,124.9,1.56849163]
[1719209255397,0.8172,124.97,124.87,5.6053]
[1719209255772,0.8172,124.97,124.88,5.6052]
[1719209255979,0.8172,124.97,124.88,5.6053]
[1719209256477,3.68280921,124.97,124.88,5.6053]
[1719209257200,3.68280921,124.97,124.84,15.87077421]
[1719209257201,3.68280921,124.97,124.89,5.6049]
[1719209257403,3.68280921,124.97,124.88,5.6052]
[1719209257581,0.8172,124.97,124.9,5.6041]
[1719209257788,0.8172,124.97,124.87,14.184]
[1719209257985,0.8172,124.97,124.84,1.85297421]
[1719209257986,3.68280921,124.97,124.85,5.6066]
[1719209258210,3.68280921,124.97,124.86,0.34]
[1719209258391,3.68280921,124.97,124.87,0.17]
[1719209258780,0.8172,124.97,124.87,5.7757]
[1719209259207,0.8172,124.97,124.87,0.17]
[1719209259509,3.68280921,124.97,124.87,0.17]
[1719209260011,0.8172,124.97,124.87,0.17]
[1719209260187,0.8172,124.97,124.87,0.34]
[1719209260393,0.8172,124.97,124.9,5.6041]
[1719209260595,0.8172,124.97,124.89,5.6048]
[1719209260788,0.8172,124.97,124.88,5.6052]
[1719209260987,0.8172,124.97,124.89,5.7749]
[1719209261206,0.8172,124.97,124.89,5.6049]
[1719209261695,0.8172,124.97,124.9,5.6044]
[1719209262690,0.8172,124.97,124.87,0.34]
[1719209262691,0.8172,124.97,124.89,5.6048]
[1719209262893,0.8172,124.97,124.9,5.6043]
[1719209263092,0.8172,124.97,124.91,5.7739]
[1719209263496,0.8172,124.97,124.91,0.17]
[1719209263810,0.8172,124.97,124.89,5.6046]
[1719209263982,0.8172,124.97,124.88,0.17]
[1719209264182,0.8172,124.97,124.88,5.9453]
[1719209264585,0.8172,124.97,124.89,5.6049]
[1719209264914,0.8172,124.97,124.9,5.6044]
[1719209265416,0.8172,124.97,124.89,5.6047]
[1719209265797,0.8172,124.97,124.9,5.7743]
[1719209265997,0.8172,124.97,124.91,5.604]
[1719209266389,0.8172,124.97,124.92,0.17]
[1719209266589,0.8172,124.97,124.9,5.774]
[1719209266824,0.8172,124.97,124.88,100.17]
[1719209267112,0.8172,124.97,124.89,0.17]
[1719209267516,0.8172,124.97,124.88,0.34]
[1719209267708,0.8172,124.97,124.88,5.9453]
[1719209268097,0.8172,124.97,124.89,5.6048]
[1719209269194,0.8172,124.97,124.88,5.9452]
[1719209269408,0.8172,124.97,124.88,5.7752]
[1719209269604,0.8172,124.97,124.86,5.6061]
[1719209270119,1.2163,124.94,124.84,1.85297421]
[1719209270304,0.17,124.93,124.84,1.85297421]
[1719209270510,3.20560921,124.93,124.83,5.6074]
[1719209270908,3.20560921,124.93,124.84,5.6071]
[1719209271315,3.20560921,124.93,124.83,5.6074]
[1719209271701,1.2163,124.94,124.85,5.6067]
[1719209271903,1.2163,124.94,124.86,5.6061]
[1719209273222,1.2163,124.94,124.85,0.17]
[1719209273513,1.2163,124.94,124.84,5.947]
[1719209273720,1.2163,124.94,124.84,0.34]
[1719209273913,1.2163,124.94,124.84,5.9471]
[1719209274823,1.2163,124.94,124.85,5.6066]
[1719209275425,1.2163,124.94,124.84,5.9469]
[1719209275727,1.2163,124.94,124.85,5.6067]
[1719209275934,0.7163,124.94,124.85,5.6067]
[1719209276102,0.7163,124.94,124.86,5.6062]
[1719209276301,0.7163,124.94,124.85,5.6065]
[1719209277421,0.7163,124.94,124.84,5.7771]
[1719209278016,0.8172,124.93,124.82,5.6078]
[1719209278942,3.68280921,124.93,124.79,14.0227]
[1719209279102,1.0563,124.92,124.78,23.0423]
[1719209279302,2.86560921,124.91,124.8,5.6089]
[1719209279604,0.7163,124.88,124.78,7.46366521]
[1719209280142,0.7163,124.88,124.78,7.46346521]
[1719209280440,0.7163,124.88,124.79,5.6092]
[1719209280626,1.1572,124.87,124.78,1.85386521]
[1719209280931,0.8172,124.86,124.73,5.6117]
[1719209281108,3.20560921,124.85,124.73,5.6117]
[1719209281312,2.86560921,124.84,124.73,5.6117]
[1719209281506,0.17,124.83,124.73,5.6117]
[1719209282315,0.8172,124.86,124.73,14.0301]
[1719209282527,3.03560921,124.85,124.73,1.85460836]
[1719209282725,2.86560921,124.84,124.74,5.6114]
[1719209282916,0.17,124.85,124.75,5.611]
[1719209283450,0.17,124.85,124.75,5.6111]
[1719209283605,0.17,124.85,124.74,5.6116]
[1719209283812,0.34,124.85,124.73,1.85460836]
[1719209284115,0.34,124.85,124.73,7.46660836]
[1719209284423,0.34,124.85,124.73,1.85460836]
[1719209286352,0.8172,124.83,124.73,1.85460836]
[1719209286522,3.20560921,124.82,124.73,1.85460836]
[1719209286831,2.86560921,124.81,124.7,5.6134]
[1719209287029,23.5672,124.79,124.68,0.8468939]
[1719209287233,3.03560921,124.78,124.68,0.8468939]
[1719209287418,3.03560921,124.78,124.68,6.4610939]
[1719209287740,3.03560921,124.78,124.68,0.8468939]
[1719209287920,0.8172,124.76,124.68,0.8468939]
[1719209288110,0.34,124.75,124.68,0.8468939]
[1719209288518,3.68280921,124.76,124.68,0.8468939]
[1719209288915,0.17,124.75,124.68,0.8468939]
[1719209289323,0.34,124.75,124.68,0.8468939]
[1719209290228,0.8172,124.73,124.68,0.8468939]
[1719209290422,0.34,124.72,124.68,0.8468939]
[1719209292238,3.20560921,124.72,124.68,0.8468939]
[1719209292418,3.03560921,124.72,124.68,0.8468939]
[1719209293132,0.17,124.72,124.68,0.8468939]
[1719209293339,0.8172,124.73,124.68,0.8468939]
[1719209295134,0.17,124.72,124.68,0.8468939]
[1719209295634,0.8172,124.73,124.68,0.8468939]
[1719209296015,0.34,124.72,124.68,0.8468939]
[1719209296216,0.17,124.72,124.68,0.8468939]
[1719209296518,3.20560921,124.72,124.68,0.8468939]
[1719209298034,0.34,124.72,124.68,0.8468939]
[1719209298226,0.8172,124.73,124.68,0.8468939]
[1719209299210,0.8172,124.78,124.68,0.8468939]
[1719209299415,0.8172,124.78,124.7,5.6134]
[1719209299621,0.8172,124.78,124.71,0.17]
[1719209299821,0.8172,124.78,124.71,5.7829]
[1719209300034,0.8172,124.78,124.71,0.17]
[1719209300531,0.8172,124.78,124.71,0.34]
[1719209301539,0.8172,124.78,124.7,0.34]
[1719209301735,0.8172,124.78,124.71,0.17]
[1719209301936,2.86560921,124.84,124.71,0.17]
[1719209301937,0.8172,124.82,124.72,100.0]
[1719209302148,2.86560921,124.85,124.75,5.611]
[1719209302348,2.86560921,124.85,124.76,0.17]
[1719209302850,0.8172,124.86,124.76,5.7804]
[1719209303153,0.8172,124.86,124.77,0.17]
[1719209303823,0.8172,124.86,124.77,20.17]
[1719209304019,0.8172,124.86,124.76,0.17]
[1719209304737,0.8172,124.86,124.75,0.17]
[1719209304931,0.8172,124.86,124.74,0.17]
[1719209305134,0.17,124.85,124.74,0.17]
[1719209305334,0.8172,124.86,124.74,100.17]
[1719209305649,0.8172,124.86,124.78,5.6095]
[1719209305842,0.8172,124.86,124.79,0.17]
[1719209306352,0.8172,124.86,124.79,5.7794]
[1719209306534,3.68280921,124.9,124.8,5.7789]
[1719209306848,0.8172,124.9,124.81,0.34]
[1719209307051,0.8172,124.9,124.81,5.7781]
[1719209307229,0.8172,124.9,124.82,0.17]
[1719209307663,0.8172,124.9,124.82,5.7777]
[1719209307957,0.8172,124.94,124.84,5.6068]
[1719209308123,0.8172,124.94,124.85,0.34]
[1719209308558,0.8172,124.94,124.81,5.6082]
[1719209308559,2.86560921,124.93,124.81,5.6082]
[1719209308727,2.86560921,124.93,124.82,0.34]
[1719209309152,2.86560921,124.93,124.81,0.34]
[1719209309350,0.17,124.92,124.81,5.9484]
[1719209309560,0.17,124.92,124.82,5.608]
[1719209309734,0.17,124.92,124.83,0.17]
[1719209310052,0.8172,124.94,124.83,0.17]
[1719209310260,0.8172,124.94,124.84,5.6068]
[1719209310556,0.8172,124.94,124.82,0.17]
[1719209310936,0.8172,124.94,124.82,5.7776]
[1719209311137,0.17,124.93,124.83,0.17]
[1719209311338,3.20560921,124.93,124.83,0.17]
[1719209311747,3.20560921,124.93,124.82,0.17]
[1719209312054,3.20560921,124.93,124.82,0.34]
[1719209312240,3.20560921,124.93,124.82,5.948]
[1719209312853,3.20560921,124.93,124.8,5.6086]
[1719209313155,23.5672,124.92,124.79,0.32599374]
[1719209313355,3.20560921,124.91,124.79,0.32599374]
[1719209313547,2.86560921,124.9,124.79,0.32599374]
[1719209313749,0.34,124.89,124.79,5.93529374]
[1719209314260,2.86560921,124.9,124.79,0.32599374]
[1719209314464,0.17,124.91,124.79,0.32599374]
[1719209314649,2.86560921,124.89,124.79,0.32599374]
[1719209314846,0.34,124.88,124.79,0.32599374]
[1719209315345,3.03560921,124.88,124.79,5.93499374]
[1719209315646,3.68280921,124.92,124.8,5.6086]
[1719209315956,0.34,124.91,124.81,0.17]
[1719209316145,0.34,124.91,124.79,0.32599374]
[1719209316353,3.68280921,124.9,124.79,0.32599374]
[1719209316549,0.34,124.89,124.79,0.32599374]
[1719209317368,0.34,124.89,124.79,5.93529374]
[1719209317657,3.20560921,124.89,124.79,0.32599374]
[1719209318328,3.20560921,124.89,124.8,0.17]
[1719209318749,0.17,124.89,124.8,0.17]
[1719209319250,0.17,124.89,124.79,0.32599374]
[1719209319457,0.17,124.89,124.8,0.17]
[1719209320158,0.34,124.89,124.8,5.7789]
[1719209321145,0.17,124.89,124.8,5.7789]
[1719209321658,0.17,124.89,124.81,5.6084]
[1719209322361,0.17,124.89,124.8,5.7787]
[1719209323045,0.8172,124.9,124.8,0.17]
[1719209323250,0.8172,124.9,124.84,5.6069]
[1719209323448,0.8172,124.9,124.85,0.17]
[1719209324040,0.8172,124.9,124.83,0.17]
[1719209324365,0.8172,124.9,124.83,5.6075]
[1719209324552,0.8172,124.9,124.84,0.17]
[1719209324743,0.8172,124.9,124.82,5.9479]
[1719209325153,0.8172,124.9,124.82,0.17]
[1719209325863,0.8172,124.9,124.81,0.34]
[1719209326670,0.8172,124.9,124.81,5.9483]
[1719209327161,0.8172,124.9,124.8,5.6088]
[1719209327462,0.34,124.89,124.79,0.32599374]
[1719209328448,0.8172,124.87,124.79,0.32599374]
[1719209328651,23.5672,124.85,124.79,0.32599374]
[1719209328944,3.20560921,124.84,124.79,0.32599374]
[1719209329859,3.03560921,124.84,124.79,0.32599374]
[1719209330563,0.8172,124.82,124.79,0.32599374]
[1719209330745,0.34,124.81,124.79,0.32599374]
[1719209330944,3.20560921,124.81,124.79,0.32599374]
[1719209331566,0.17,124.81,124.79,0.32599374]
[1719209332336,0.34,124.81,124.79,0.32599374]
[1719209332740,3.20560921,124.81,124.79,0.32599374]
[1719209333748,0.34,124.81,124.79,0.32599374]
[1719209333963,0.17,124.81,124.79,0.32599374]
[1719209334160,3.03560921,124.81,124.79,0.32599374]
[1719209335239,0.17,124.81,124.79,0.32599374]
[1719209335440,0.34,124.81,124.79,0.32599374]
[1719209337773,3.20560921,124.81,124.79,0.32599374]
[1719209341463,48.20560921,124.81,124.79,0.32599374]
[1719209341666,48.20560921,124.81,124.68,0.8468939]
[1719209341867,0.8172,124.8,124.68,0.8468939]
[1719209342052,22.75,124.78,124.68,0.8468939]
[1719209342374,3.20560921,124.77,124.68,0.8468939]
[1719209342548,2.86560921,124.76,124.68,0.8468939]
[1719209342752,0.34,124.75,124.68,0.8468939]
[1719209344384,2.86560921,124.77,124.68,0.8468939]
[1719209344555,3.68280921,124.8,124.7,5.6131]
[1719209344759,3.68280921,124.8,124.68,0.8468939]
[1719209345164,3.68280921,124.8,124.69,5.6136]
[1719209345477,3.68280921,124.8,124.68,6.6311939]
[1719209345660,0.8172,124.79,124.68,0.8468939]
[1719209345855,0.8172,124.76,124.68,0.8468939]
[1719209346056,0.8172,124.72,124.68,0.8468939]
[1719209346257,3.68280921,124.72,124.68,0.8468939]
[1719209346750,0.34,124.71,124.68,0.8468939]
[1719209346975,0.34,124.71,124.56,0.8468939]
[1719209346976,22.75,124.69,124.56,0.8468939]
[1719209347284,3.20560921,124.68,124.57,5.6191]
[1719209347585,3.20560921,124.68,124.56,0.8468939]
[1719209347875,3.20560921,124.68,124.56,6.4665939]
[1719209348075,3.20560921,124.68,124.56,0.8468939]
[1719209348557,3.20560921,124.68,124.56,6.4662939]
[1719209348878,3.20560921,124.68,124.57,5.6193]
[1719209349080,2.86560921,124.73,124.58,100.0]
[1719209349250,2.86560921,124.73,124.6,16.0769]
[1719209349455,2.86560921,124.73,124.6,21.6948]
[1719209349872,45.5,124.8,124.61,0.17]
[1719209350077,2.86560921,124.79,124.64,6.0951]
[1719209350267,2.86560921,124.79,124.66,5.615]
[1719209350452,2.86560921,124.79,124.65,0.17]
[1719209350649,2.86560921,124.79,124.65,0.34]
[1719209351276,2.86560921,124.79,124.66,15.7799]
[1719209351852,2.86560921,124.79,124.67,0.17]
[1719209352355,2.86560921,124.79,124.67,0.34]
[1719209353079,2.86560921,124.79,124.67,0.17]
[1719209353380,22.75,124.77,124.64,6.0951]
[1719209353674,3.20560921,124.76,124.64,6.0951]
[1719209353892,1.85428873,124.75,124.62,15.0466]
[1719209354184,3.20560921,124.74,124.62,20.6635]
[1719209354385,2.86560921,124.73,124.62,20.6635]
[1719209354554,1.85428873,124.75,124.62,115.0466]
[1719209354755,2.86560921,124.79,124.67,5.6144]
[1719209354973,2.86560921,124.79,124.68,0.43815237]
[1719209355877,2.86560921,124.79,124.67,0.17]
[1719209356084,2.86560921,124.79,124.68,5.7842]
[1719209356382,2.86560921,124.79,124.68,0.17]
[1719209356558,2.86560921,124.79,124.62,115.0466]
[1719209356559,1.85428873,124.78,124.62,15.0466]
[1719209356759,2.86560921,124.77,124.63,20.0]
[1719209356968,2.86560921,124.76,124.63,120.0]
[1719209357176,0.17,124.75,124.63,120.0]
[1719209357357,0.34,124.75,124.64,5.6158]
[1719209357957,2.86560921,124.74,124.63,20.0]
[1719209358160,0.34,124.73,124.62,20.6635]
[1719209358379,0.34,124.73,124.63,5.6162]
[1719209358380,3.20560921,124.73,124.63,5.6162]
[1719209358558,0.17,124.73,124.62,15.0466]
[1719209358758,0.17,124.73,124.63,5.6164]
[1719209359183,0.17,124.73,124.62,20.6635]
[1719209359359,0.17,124.73,124.62,15.0466]
[1719209359862,0.17,124.73,124.62,20.6636]
[1719209360177,0.17,124.73,124.62,115.0466]
[1719209360381,0.17,124.73,124.62,15.0466]
[1719209360564,3.03560921,124.73,124.63,5.6165]
[1719209360759,0.17,124.73,124.62,115.0466]
[1719209360966,0.17,124.73,124.65,5.6152]
[1719209361166,0.17,124.73,124.64,0.17]
[1719209361466,0.17,124.73,124.64,5.956]
[1719209361774,0.17,124.73,124.64,5.9561]
[1719209361981,0.17,124.73,124.64,0.17]
[1719209362172,0.17,124.73,124.62,20.6636]
[1719209362371,0.17,124.73,124.63,0.17]
[1719209362593,0.17,124.73,124.62,15.0466]
[1719209363862,0.17,124.73,124.63,0.34]
[1719209364068,0.17,124.73,124.63,0.17]
[1719209364270,0.17,124.73,124.63,0.34]
[1719209364685,2.86560921,124.74,124.63,0.34]
[1719209364989,2.86560921,124.74,124.64,5.616]
[1719209365175,4.71989794,124.78,124.65,0.34]
[1719209365691,2.86560921,124.78,124.68,5.6141]
[1719209365880,2.86560921,124.79,124.69,0.17]
[1719209366260,2.86560921,124.79,124.68,5.6141]
[1719209366261,2.86560921,124.79,124.65,5.6155]
[1719209366487,2.86560921,124.79,124.62,115.0466]
[1719209366791,4.71989794,124.79,124.63,25.9563]
[1719209366978,0.17,124.78,124.63,0.34]
[1719209367290,1.85428873,124.77,124.62,20.6635]
[1719209367586,0.17,124.76,124.62,20.6635]
[1719209367887,0.17,124.76,124.62,15.0466]
[1719209368075,3.03560921,124.76,124.62,15.0466]
[1719209368382,48.20560921,124.76,124.59,15.4265]
[1719209368584,1.85428873,124.75,124.6,5.6176]
[1719209368897,3.20560921,124.74,124.63,5.6163]
[1719209369181,2.86560921,124.73,124.63,5.6163]
[1719209369367,0.17,124.72,124.63,5.6163]
[1719209369577,0.34,124.74,124.65,5.6155]
[1719209370163,3.20560921,124.74,124.64,0.34]
[1719209370361,3.20560921,124.74,124.59,15.4265]
[1719209370562,3.20560921,124.74,124.61,5.6173]
[1719209370872,0.34,124.74,124.62,0.17]
[1719209371078,0.34,124.74,124.61,5.6174]
[1719209371375,0.34,124.74,124.62,5.617]
[1719209371583,0.34,124.74,124.59,15.4265]
[1719209371776,22.75,124.71,124.56,0.8468939]
[1719209372096,2.19428873,124.7,124.56,0.8468939]
[1719209372493,2.19428873,124.7,124.57,5.6193]
[1719209372790,2.19428873,124.7,124.57,5.6192]
[1719209372999,2.19428873,124.7,124.56,0.8468939]
[1719209373181,22.75,124.68,124.56,0.8468939]
[1719209373497,3.20560921,124.67,124.57,5.6192]
[1719209373666,3.03560921,124.67,124.57,5.6192]
[1719209373989,3.03560921,124.67,124.58,5.6188]
[1719209374197,3.03560921,124.67,124.56,0.8468939]
[1719209374506,1.85428873,124.7,124.6,5.6179]
[1719209374801,1.85428873,124.7,124.58,14.0461]
[1719209375003,2.86560921,124.72,124.56,0.8468939]
[1719209375380,2.86560921,124.72,124.56,120.8468939]
[1719209375596,2.86560921,124.72,124.61,5.6174]
[1719209375777,2.86560921,124.72,124.62,5.787]
[1719209375973,2.86560921,124.72,124.62,0.17]
[1719209376194,2.86560921,124.72,124.59,5.6182]
[1719209376393,2.86560921,124.72,124.57,100.0]
[1719209376590,2.86560921,124.72,124.58,0.34]
[1719209376787,2.86560921,124.72,124.58,0.17]
[1719209377084,2.86560921,124.72,124.57,0.17]
[1719209377309,0.34,124.71,124.57,0.17]
[1719209377488,2.86560921,124.7,124.58,5.6186]
[1719209377805,0.34,124.69,124.59,0.17]
[1719209377983,0.34,124.69,124.59,5.7884]
[1719209378189,32.159917,124.77,124.59,0.17]
[1719209378501,22.75,124.74,124.59,0.17]
[1719209378698,22.75,124.74,124.58,20.17]
[1719209379001,22.75,124.74,124.6,5.6179]
[1719209379298,2.86560921,124.73,124.61,0.17]
[1719209379500,0.17,124.72,124.6,0.34]
[1719209379702,2.86560921,124.71,124.6,0.34]
[1719209379903,5.05989794,124.7,124.57,5.619]
[1719209380085,5.05989794,124.7,124.56,0.8468939]
[1719209380086,4.88989794,124.7,124.56,0.8468939]
[1719209380274,0.17,124.69,124.58,5.6184]
[1719209380787,3.03560921,124.69,124.58,5.6184]
[1719209381000,3.03560921,124.69,124.59,5.6184]
[1719209381301,3.03560921,124.69,124.6,0.17]
[1719209381490,3.03560921,124.69,124.58,5.6188]
[1719209381808,3.03560921,124.69,124.57,5.6191]
[1719209381809,0.17,124.68,124.57,5.6191]
[1719209382595,0.17,124.68,124.56,0.8468939]
[1719209382596,0.17,124.68,124.58,5.6188]
[1719209382885,1.85428873,124.7,124.62,5.617]
[1719209383192,1.85428873,124.7,124.57,100.0]
[1719209383400,1.85428873,124.7,124.6,5.6178]
[1719209383584,1.85428873,124.7,124.61,0.34]
[1719209383783,2.86560921,124.69,124.56,0.8468939]
[1719209383982,2.86560921,124.68,124.56,20.8468939]
[1719209384181,0.34,124.67,124.56,0.8468939]
[1719209384601,2.86560921,124.66,124.56,0.8468939]
[1719209384795,2.6480883,124.66,124.56,6.4665939]
[1719209385512,0.34,124.67,124.56,6.4665939]
[1719209385890,0.34,124.67,124.57,5.7892]
[1719209386081,0.17,124.67,124.58,5.6187]
[1719209386283,0.17,124.67,124.59,0.17]
[1719209386496,4.50237703,124.7,124.59,0.17]
[1719209386691,0.17,124.69,124.59,0.34]
[1719209386903,4.50237703,124.7,124.59,5.9582]
[1719209387099,4.50237703,124.7,124.59,5.9581]
[1719209387686,4.50237703,124.7,124.59,0.17]
[1719209388404,0.17,124.69,124.59,0.17]
[1719209388611,0.34,124.69,124.59,0.17]
[1719209389145,0.34,124.69,124.59,5.7883]
[1719209389313,1.85428873,124.7,124.61,100.0]
[1719209389490,1.85428873,124.7,124.65,5.6153]
[1719209389817,2.6480883,124.76,124.66,0.17]
[1719209390986,22.75,124.78,124.66,0.17]
[1719209391185,2.6480883,124.77,124.66,0.34]
[1719209391800,2.6480883,124.76,124.66,0.34]
[1719209392117,2.6480883,124.76,124.65,0.34]
[1719209392310,2.6480883,124.79,124.65,0.34]
[1719209392494,4.50237703,124.79,124.66,5.6152]
[1719209392691,4.50237703,124.79,124.67,0.17]
[1719209393393,4.50237703,124.79,124.65,0.17]
[1719209393607,0.34,124.78,124.62,20.0]
[1719209393819,0.34,124.78,124.63,5.6163]
[1719209394115,22.75,124.75,124.59,259.0]
[1719209394320,0.34,124.74,124.56,107.2458939]
[1719209394492,0.34,124.74,124.6,5.6177]
[1719209394817,4.84237703,124.74,124.6,5.6177]
[1719209394991,4.84237703,124.74,124.59,5.6182]
[1719209395198,1.85428873,124.73,124.59,5.6182]
[1719209395393,22.75,124.71,124.56,6.4662939]
[1719209395593,2.8180883,124.7,124.57,5.619]
[1719209395896,2.9880883,124.7,124.56,0.8468939]
[1719209396110,2.9880883,124.7,124.57,5.6191]
[1719209396801,2.9880883,124.7,124.56,0.8468939]
[1719209396997,2.9880883,124.7,124.56,6.4662939]
[1719209397317,22.75,124.68,124.56,0.8468939]
[1719209397516,2.9880883,124.67,124.56,0.8468939]
[1719209398595,2.9880883,124.67,124.56,6.4662939]
[1719209398792,2.9880883,124.67,124.56,0.8468939]
[1719209400113,1.85428873,124.66,124.56,0.8468939]
[1719209400328,2.9880883,124.65,124.56,0.8468939]
[1719209400714,1.85428873,124.66,124.56,0.8468939]
[1719209400913,0.17,124.67,124.56,0.8468939]
[1719209401408,2.6480883,124.68,124.56,0.8468939]
[1719209401614,2.6480883,124.68,124.57,0.17]
[1719209401925,2.6480883,124.7,124.57,0.34]
[1719209402234,2.6480883,124.74,124.6,5.6178]
[1719209402395,2.6480883,124.73,124.61,0.17]